[Event "European Online Club-ch-H 2021"]
[Site "Online"]
[Date "2021.03.27"]
[Round "9.6"]
[White "Glek, Igor"]
[Black "Bromann, Thorbjorn"]
[Result "1-0"]
[ECO "B06"]
[WhiteElo "2475"]
[BlackElo "2392"]
[Annotator "ChessBase"]
[PlyCount "47"]
[EventDate "2021.03.27"]
[EventType "team-tourn"]
[EventCountry "NET"]
[SourceTitle "playchess.com"]
[Source "ChessBase"]
[SourceQuality "1"]
[TimeControl "900+5"]

1. e4 {[%emt 0:00:00]} g6 {[%emt 0:00:04]} 2. d4 {[%emt 0:00:03]} Bg7 {[%emt 0:00:01]} 3. Nc3 {[%emt 0:00:01]} d6 {[%emt 0:00:02]} 4. f4 {[%emt 0:00:01]} a6 {[%emt 0:00:01]} 5. Nf3 {[%emt 0:00:17]} b5 {[%emt 0:00:02]} 6. a4 {[%emt 0:00:22]} b4 {[%emt 0:00:07]} 7. Nd5 {[%emt 0:00:02]} Bb7 {[%emt 0:00:26]} 8. Bd3 {[%emt 0:00:15]} c5 {[%emt 0:00:13]} 9. dxc5 {[%emt 0:00:30]} dxc5 {[%emt 0:00:07]} 10. Ne3 {[%emt 0:00:07]} Nd7 {[%emt 0:00:27]} 11. a5 {[%emt 0:00:11]} Qc7 {[%emt 0:00:32]} 12. Nc4 {[%emt 0:00:03]} Ngf6 {[%emt 0:00:29]} 13. Qe2 {[%emt 0:00:03]} O-O {[%emt 0:00:30]} 14. O-O {[%emt 0:00:03]} Bc6 {[%emt 0:01:03]} 15. e5 {[%emt 0:00:44]} Nd5 {[%emt 0:01:01]} 16. f5 {[%emt 0:00:27]} e6 {[%emt 0:02:45]} 17. f6 {[%emt 0:00:12]} Bh8 {[%emt 0:00:05]} 18. Bh6 {[%emt 0:00:03]} Rfd8 {[%emt 0:00:09]} 19. Rae1 {[%emt 0:00:17]} Bb5 {[%emt 0:00:21]} 20. Qf2 {[%emt 0:00:10]} Bxc4 {[%emt 0:01:20]} 21. Bxc4 {[%emt 0:00:03]} N7xf6 {[%emt 0:00:03]} 22. exf6 {[%emt 0:00:09]} Nxf6 {[%emt 0:00:03]} 23. Qh4 {[%emt 0:00:48]} Rd7 {[%emt 0:01:14]} 24. Rxe6 {[%emt 0:00:17]} 1-0

[Event "European Online Club-ch-H 2021"]
[Site "Online"]
[Date "2021.03.27"]
[Round "9.7"]
[White "Aabling-Thomsen, Jakob"]
[Black "Harff, Marcel"]
[Result "1/2-1/2"]
[ECO "C00"]
[WhiteElo "2348"]
[BlackElo "2360"]
[Annotator "NA"]
[PlyCount "117"]
[EventDate "2021.03.27"]
[EventType "team-tourn"]
[EventCountry "NET"]
[SourceTitle "playchess.com"]
[Source "ChessBase"]
[SourceQuality "1"]
[TimeControl "900+5"]

1. e4 {[%emt 0:00:00]} e6 {[%emt 0:00:03]} 2. Qe2 {[%emt 0:00:03]} c5 {[%emt 0:00:03]} 3. Nf3 {[%emt 0:00:03]} Nc6 {[%emt 0:00:02]} 4. g3 {[%emt 0:00:01]} Nf6 {[%emt 0:00:04]} 5. Bg2 {[%emt 0:00:04]} Be7 {[%emt 0:00:02]} 6. O-O {[%emt 0:00:03]} d5 {[%emt 0:00:06]} 7. d3 {[%emt 0:00:04]} b5 {[%emt 0:00:30]} 8. e5 {[%emt 0:01:02]} Nd7 {[%emt 0:00:03]} 9. h4 {[%emt 0:00:01]} a5 {[%emt 0:00:04]} 10. h5 {[%emt 0:00:12]} h6 {[%emt 0:00:03]} 11. Bf4 {[%emt 0:00:03]} g5 {[%emt 0:00:09]} 12. hxg6 {[%emt 0:00:07]} fxg6 {[%emt 0:00:02]} 13. c4 {[%emt 0:00:26]} bxc4 {[%emt 0:00:05]} 14. dxc4 {[%emt 0:00:02]} Ba6 {[%emt 0:00:02]} 15. Na3 {[%emt 0:00:36]} g5 {[%emt 0:00:18]} 16. Bc1 {[%emt 0:00:06]} Qb6 {[%emt 0:00:10]} 17. Qc2 {[%emt 0:00:13]} O-O-O {[%emt 0:00:23]} 18. cxd5 {[%emt 0:00:10]} Nb4 {[%emt 0:00:06]} 19. Qd1 {[%emt 0:01:07]} g4 {[%emt 0:00:36]} 20. Nh2 {[%emt 0:00:54]} Nxe5 {[%emt 0:00:04]} 21. Re1 {[%emt 0:00:13]} Nbd3 {[%emt 0:00:14]} 22. Re3 {[%emt 0:00:15]} Bg5 {[%emt 0:00:05]} 23. Nxg4 {[%emt 0:00:10]} Bxe3 {[%emt 0:00:28]} 24. Nxe3 {[%emt 0:00:44]} c4 {[%emt 0:01:07]} 25. b3 {[%emt 0:00:27]} Rhf8 {[%emt 0:00:32]} 26. Naxc4 {[%emt 0:01:12]} Bxc4 {[%emt 0:00:11]} 27. bxc4 {[%emt 0:00:07]} Nxf2 {[%emt 0:00:17]} 28. Qb3 {[%emt 0:00:29]} Qxb3 {[%emt 0:01:02]} 29. axb3 {[%emt 0:00:00]} exd5 {[%emt 0:00:11]} 30. Nxd5 {[%emt 0:00:18]} Nfg4 {[%emt 0:00:20]} 31. Bf4 {[%emt 0:00:24]} Kd7 {[%emt 0:01:03]} 32. Rxa5 {[%emt 0:00:11]} Ke6 {[%emt 0:00:13]} 33. Ra6+ {[%emt 0:02:28]} Kf7 {[%emt 0:00:10]} 34. Ra7+ {[%emt 0:00:04]} Rd7 {[%emt 0:00:11]} 35. Ra6 {[%emt 0:00:14]} Rb8 {[%emt 0:00:20]} 36. Bxe5 {[%emt 0:00:23]} Nxe5 {[%emt 0:00:05]} 37. Rxh6 {[%emt 0:00:05]} Rxb3 {[%emt 0:00:05]} 38. Bh3 {[%emt 0:00:18]} Rdb7 {[%emt 0:00:21]} 39. Rh7+ {[%emt 0:00:18]} Kg6 {[%emt 0:00:05]} 40. Rxb7 {[%emt 0:00:00]} Rxb7 {[%emt 0:00:05]} 41. c5 {[%emt 0:00:02]} Rb1+ {[%emt 0:00:10]} 42. Kf2 {[%emt 0:00:26]} Nd3+ {[%emt 0:00:03]} 43. Ke3 {[%emt 0:00:03]} Nxc5 {[%emt 0:00:03]} 44. Kd4 {[%emt 0:00:05]} Nb3+ {[%emt 0:00:14]} 45. Ke5 {[%emt 0:00:11]} Re1+ {[%emt 0:00:09]} 46. Kf4 {[%emt 0:00:02]} Nd4 {[%emt 0:00:04]} 47. Bd7 {[%emt 0:00:12]} Rf1+ {[%emt 0:00:09]} 48. Kg4 {[%emt 0:00:03]} Kf7 {[%emt 0:00:18]} 49. Nf4 {[%emt 0:00:12]} Nc2 {[%emt 0:00:37]} 50. Kg5 {[%emt 0:00:15]} Ke7 {[%emt 0:00:18]} 51. Bb5 {[%emt 0:00:38]} Rg1 {[%emt 0:00:05]} 52. g4 {[%emt 0:00:16]} Nd4 {[%emt 0:00:05]} 53. Bd3 {[%emt 0:00:13]} Rg3 {[%emt 0:00:25]} 54. Ng6+ {[%emt 0:00:14]} Kd6 {[%emt 0:00:09]} 55. Bf5 {[%emt 0:00:09]} Nf3+ {[%emt 0:00:11]} 56. Kf6 {[%emt 0:00:09]} Nh2 {[%emt 0:00:05]} 57. Ne5 {[%emt 0:00:05]} Nxg4+ {[%emt 0:00:07]} 58. Nxg4 {[%emt 0:00:04]} Rxg4 {[%emt 0:00:01]} 59. Bxg4 {[%emt 0:00:02]} 1/2-1/2

[Event "European Online Club-ch-H 2021"]
[Site "Online"]
[Date "2021.03.27"]
[Round "9.8"]
[White "Ahn, Martin"]
[Black "Carstensen, Jacob"]
[Result "0-1"]
[ECO "B53"]
[WhiteElo "2171"]
[BlackElo "2361"]
[Annotator "NA"]
[PlyCount "108"]
[EventDate "2021.03.27"]
[EventType "team-tourn"]
[EventCountry "NET"]
[SourceTitle "playchess.com"]
[Source "ChessBase"]
[SourceQuality "1"]
[TimeControl "900+5"]

1. e4 {[%emt 0:00:00]} c5 {[%emt 0:00:04]} 2. Nf3 {[%emt 0:00:03]} d6 {[%emt 0:00:01]} 3. d4 {[%emt 0:00:08]} Nf6 {[%emt 0:00:01]} 4. Nc3 {[%emt 0:00:03]} cxd4 {[%emt 0:00:01]} 5. Qxd4 {[%emt 0:00:01]} a6 {[%emt 0:00:00]} 6. e5 {[%emt 0:00:12]} Nc6 {[%emt 0:00:02]} 7. Qa4 {[%emt 0:00:02]} dxe5 {[%emt 0:01:04]} 8. Nxe5 {[%emt 0:00:03]} Bd7 {[%emt 0:00:01]} 9. Nxd7 {[%emt 0:00:04]} Nxd7 {[%emt 0:00:03]} 10. Be3 {[%emt 0:00:43]} e6 {[%emt 0:00:04]} 11. O-O-O {[%emt 0:00:26]} Be7 {[%emt 0:00:16]} 12. Qg4 {[%emt 0:01:19]} h5 {[%emt 0:00:24]} 13. Qg3 {[%emt 0:01:27]} Qa5 {[%emt 0:00:23]} 14. Bc4 {[%emt 0:00:35]} h4 {[%emt 0:00:56]} 15. Qf4 {[%emt 0:01:05]} g5 {[%emt 0:00:29]} 16. Qf3 {[%emt 0:01:58]} Nde5 {[%emt 0:01:55]} 17. Qe2 {[%emt 0:00:02]} Nxc4 {[%emt 0:02:09]} 18. Qxc4 {[%emt 0:00:02]} Rc8 {[%emt 0:00:01]} 19. Kb1 {[%emt 0:00:38]} O-O {[%emt 0:00:25]} 20. Bd2 {[%emt 0:04:56]} Ne5 {[%emt 0:01:09]} 21. Qb3 {[%emt 0:01:02]} Nc4 {[%emt 0:00:05]} 22. Ne4 {[%emt 0:00:26]} Qf5 {[%emt 0:00:25]} 23. Rhe1 {[%emt 0:00:20]} Rfd8 {[%emt 0:01:49]} 24. f3 {[%emt 0:00:02]} b5 {[%emt 0:00:22]} 25. Bc3 {[%emt 0:00:07]} Ne3 {[%emt 0:00:10]} 26. Rxd8+ {[%emt 0:00:31]} Rxd8 {[%emt 0:00:04]} 27. Ba5 {[%emt 0:00:22]} Nxg2 {[%emt 0:00:21]} 28. Bxd8 {[%emt 0:00:03]} Nxe1 {[%emt 0:00:01]} 29. Bxe7 {[%emt 0:00:02]} Nxf3 {[%emt 0:00:02]} 30. Nf6+ {[%emt 0:00:09]} Kg7 {[%emt 0:00:11]} 31. Qc3 {[%emt 0:00:04]} Nxh2 {[%emt 0:00:54]} 32. a3 {[%emt 0:00:27]} Kg6 {[%emt 0:00:16]} 33. Qc8 {[%emt 0:00:04]} Qf1+ {[%emt 0:00:03]} 34. Ka2 {[%emt 0:00:04]} Qc4+ {[%emt 0:00:00]} 35. Qxc4 {[%emt 0:00:01]} bxc4 {[%emt 0:00:00]} 36. b4 {[%emt 0:00:14]} cxb3+ {[%emt 0:00:03]} 37. cxb3 {[%emt 0:00:03]} h3 {[%emt 0:00:00]} 38. Ne4 {[%emt 0:00:08]} g4 {[%emt 0:00:03]} 39. Bd6 {[%emt 0:00:03]} Nf1 {[%emt 0:00:10]} 40. b4 {[%emt 0:00:11]} f5 {[%emt 0:00:04]} 41. Nf2 {[%emt 0:00:06]} h2 {[%emt 0:00:03]} 42. Nh1 {[%emt 0:00:01]} Kf6 {[%emt 0:00:08]} 43. a4 {[%emt 0:00:05]} e5 {[%emt 0:00:03]} 44. b5 {[%emt 0:00:02]} axb5 {[%emt 0:00:14]} 45. axb5 {[%emt 0:00:14]} g3 {[%emt 0:00:06]} 46. b6 {[%emt 0:00:04]} g2 {[%emt 0:00:02]} 47. b7 {[%emt 0:00:02]} gxh1=Q {[%emt 0:00:07]} 48. b8=Q {[%emt 0:00:02]} Qd5+ {[%emt 0:00:02]} 49. Ka3 {[%emt 0:00:04]} h1=Q {[%emt 0:00:13]} 50. Qd8+ {[%emt 0:00:08]} Kg6 {[%emt 0:00:03]} 51. Qe8+ {[%emt 0:00:07]} Qf7 {[%emt 0:00:08]} 52. Qxe5 {[%emt 0:00:02]} Qf3+ {[%emt 0:00:04]} 53. Kb4 {[%emt 0:00:02]} Q3b3+ {[%emt 0:00:04]} 54. Kc5 {[%emt 0:00:03]} Qfc4# {[%emt 0:00:03]} 0-1

[Event "European Online Club-ch-H 2021"]
[Site "Online"]
[Date "2021.03.27"]
[Round "9.9"]
[White "Kazakov, Mikhail"]
[Black "Mamedov, Rauf"]
[Result "0-1"]
[ECO "E61"]
[WhiteElo "2516"]
[BlackElo "2654"]
[Annotator "ChessBase"]
[PlyCount "94"]
[EventDate "2021.03.27"]
[EventType "team-tourn"]
[EventCountry "NET"]
[SourceTitle "playchess.com"]
[Source "ChessBase"]
[SourceQuality "1"]
[TimeControl "900+5"]

1. d4 {[%emt 0:00:00]} Nf6 {[%emt 0:00:03]} 2. c4 {[%emt 0:00:02]} g6 {[%emt 0:00:01]} 3. Nc3 {[%emt 0:00:02]} Bg7 {[%emt 0:00:01]} 4. Nf3 {[%emt 0:00:01]} O-O {[%emt 0:00:02]} 5. Bg5 {[%emt 0:00:02]} h6 {[%emt 0:00:03]} 6. Bh4 {[%emt 0:00:02]} d6 {[%emt 0:00:02]} 7. e3 {[%emt 0:00:01]} c5 {[%emt 0:00:06]} 8. d5 {[%emt 0:00:04]} e5 {[%emt 0:00:19]} 9. dxe6 {[%emt 0:00:12]} Bxe6 {[%emt 0:00:02]} 10. Be2 {[%emt 0:00:03]} Nc6 {[%emt 0:00:03]} 11. O-O {[%emt 0:00:04]} Qb6 {[%emt 0:00:35]} 12. Rb1 {[%emt 0:00:20]} Rad8 {[%emt 0:00:24]} 13. Qb3 {[%emt 0:00:21]} Qxb3 {[%emt 0:00:23]} 14. axb3 {[%emt 0:00:03]} g5 {[%emt 0:00:02]} 15. Bg3 {[%emt 0:00:03]} d5 {[%emt 0:00:05]} 16. Rfd1 {[%emt 0:01:00]} d4 {[%emt 0:01:01]} 17. exd4 {[%emt 0:00:22]} cxd4 {[%emt 0:00:02]} 18. Nb5 {[%emt 0:00:05]} Ne4 {[%emt 0:00:01]} 19. Nc7 {[%emt 0:01:21]} Bf5 {[%emt 0:00:42]} 20. Bd3 {[%emt 0:00:44]} Nb4 {[%emt 0:00:20]} 21. Ne1 {[%emt 0:00:35]} Rd7 {[%emt 0:01:28]} 22. Nd5 {[%emt 0:01:33]} Nxd5 {[%emt 0:00:04]} 23. cxd5 {[%emt 0:00:02]} Rxd5 {[%emt 0:00:01]} 24. f3 {[%emt 0:00:06]} Nc5 {[%emt 0:00:05]} 25. Bxf5 {[%emt 0:00:17]} Rxf5 {[%emt 0:00:02]} 26. b4 {[%emt 0:00:03]} Na6 {[%emt 0:00:14]} 27. Nd3 {[%emt 0:00:04]} Rb5 {[%emt 0:00:01]} 28. Rbc1 {[%emt 0:00:22]} Rd8 {[%emt 0:00:10]} 29. Rc4 {[%emt 0:00:06]} Bf8 {[%emt 0:00:31]} 30. Be1 {[%emt 0:00:11]} Nb8 {[%emt 0:00:03]} 31. h4 {[%emt 0:00:37]} f6 {[%emt 0:00:05]} 32. hxg5 {[%emt 0:00:23]} hxg5 {[%emt 0:00:02]} 33. Nc5 {[%emt 0:01:15]} Bxc5 {[%emt 0:00:09]} 34. bxc5 {[%emt 0:00:04]} Nc6 {[%emt 0:00:10]} 35. b4 {[%emt 0:00:02]} Kf7 {[%emt 0:00:01]} 36. Ra1 {[%emt 0:01:00]} Ke6 {[%emt 0:00:08]} 37. Ra4 {[%emt 0:00:04]} Kd5 {[%emt 0:00:04]} 38. Rc1 {[%emt 0:00:02]} Re8 {[%emt 0:00:09]} 39. Kf2 {[%emt 0:00:06]} a6 {[%emt 0:00:04]} 40. Bd2 {[%emt 0:00:05]} Ne5 {[%emt 0:00:03]} 41. Rd1 {[%emt 0:00:46]} Nd3+ {[%emt 0:00:03]} 42. Kg3 {[%emt 0:00:11]} Nb2 {[%emt 0:00:01]} 43. Raa1 {[%emt 0:00:04]} Nxd1 {[%emt 0:00:05]} 44. Rxd1 {[%emt 0:00:01]} Kc4 {[%emt 0:00:10]} 45. Kf2 {[%emt 0:00:06]} a5 {[%emt 0:00:05]} 46. bxa5 {[%emt 0:00:11]} Kxc5 {[%emt 0:00:05]} 47. Rc1+ {[%emt 0:00:07]} Kd5 {[%emt 0:00:03]} 0-1

[Event "European Online Club-ch-H 2021"]
[Site "Online"]
[Date "2021.03.27"]
[Round "9.10"]
[White "Asadli, Vugar"]
[Black "Sabuk, Piotr"]
[Result "1-0"]
[ECO "C47"]
[WhiteElo "2572"]
[BlackElo "2366"]
[Annotator "ChessBase"]
[PlyCount "117"]
[EventDate "2021.03.27"]
[EventType "team-tourn"]
[EventCountry "NET"]
[SourceTitle "playchess.com"]
[Source "ChessBase"]
[SourceQuality "1"]
[TimeControl "900+5"]

1. e4 {[%emt 0:00:00]} e5 {[%emt 0:00:03]} 2. Nf3 {[%emt 0:00:05]} Nc6 {[%emt 0:00:01]} 3. Nc3 {[%emt 0:00:01]} Nf6 {[%emt 0:00:03]} 4. a3 {[%emt 0:00:02]} g6 {[%emt 0:00:02]} 5. Bc4 {[%emt 0:00:06]} Bg7 {[%emt 0:00:11]} 6. d3 {[%emt 0:00:01]} d6 {[%emt 0:00:19]} 7. h3 {[%emt 0:00:05]} Be6 {[%emt 0:00:24]} 8. Bxe6 {[%emt 0:00:10]} fxe6 {[%emt 0:00:02]} 9. O-O {[%emt 0:00:01]} Nh5 {[%emt 0:00:42]} 10. Ne2 {[%emt 0:00:06]} O-O {[%emt 0:00:05]} 11. c3 {[%emt 0:00:06]} Rxf3 {[%emt 0:00:52]} 12. gxf3 {[%emt 0:00:03]} Qh4 {[%emt 0:00:03]} 13. Kg2 {[%emt 0:00:05]} Rf8 {[%emt 0:00:06]} 14. Be3 {[%emt 0:00:20]} Nd8 {[%emt 0:00:48]} 15. d4 {[%emt 0:01:13]} Nf7 {[%emt 0:00:40]} 16. Qd2 {[%emt 0:00:03]} Bh6 {[%emt 0:04:00]} 17. Bxh6 {[%emt 0:01:26]} Nxh6 {[%emt 0:00:02]} 18. dxe5 {[%emt 0:00:02]} dxe5 {[%emt 0:00:51]} 19. Rg1 {[%emt 0:00:31]} Nf7 {[%emt 0:00:23]} 20. Rh1 {[%emt 0:01:16]} Ng5 {[%emt 0:00:25]} 21. Ng1 {[%emt 0:00:03]} Nf4+ {[%emt 0:00:48]} 22. Kf1 {[%emt 0:00:01]} Nf7 {[%emt 0:00:35]} 23. Rd1 {[%emt 0:00:08]} Nd6 {[%emt 0:01:07]} 24. Ne2 {[%emt 0:00:29]} Nxe4 {[%emt 0:00:51]} 25. Qe3 {[%emt 0:00:24]} Nxh3 {[%emt 0:01:53]} 26. Rh2 {[%emt 0:00:30]} Neg5 {[%emt 0:00:27]} 27. Qxe5 {[%emt 0:00:55]} Qa4 {[%emt 0:00:21]} 28. Re1 {[%emt 0:03:24]} Qa6 {[%emt 0:00:07]} 29. Rxh3 {[%emt 0:00:22]} Nxh3 {[%emt 0:00:05]} 30. Kg2 {[%emt 0:00:02]} Rf5 {[%emt 0:00:20]} 31. Qxc7 {[%emt 0:00:26]} Ng5 {[%emt 0:00:22]} 32. Nd4 {[%emt 0:00:07]} Rf8 {[%emt 0:00:09]} 33. Qe5 {[%emt 0:00:14]} h6 {[%emt 0:00:21]} 34. f4 {[%emt 0:00:14]} Nf7 {[%emt 0:00:02]} 35. Qf6 {[%emt 0:00:15]} Nh8 {[%emt 0:00:08]} 36. Qe5 {[%emt 0:00:19]} Nf7 {[%emt 0:00:15]} 37. Qxe6 {[%emt 0:00:02]} Qxe6 {[%emt 0:00:02]} 38. Rxe6 {[%emt 0:00:01]} g5 {[%emt 0:00:01]} 39. fxg5 {[%emt 0:00:10]} hxg5 {[%emt 0:00:02]} 40. Re7 {[%emt 0:00:01]} Nd6 {[%emt 0:00:01]} 41. Rd7 {[%emt 0:00:02]} Rf6 {[%emt 0:00:04]} 42. f3 {[%emt 0:00:01]} a5 {[%emt 0:00:05]} 43. a4 {[%emt 0:00:02]} b6 {[%emt 0:00:04]} 44. Kg3 {[%emt 0:00:04]} Nc4 {[%emt 0:00:04]} 45. b3 {[%emt 0:00:04]} Ne5 {[%emt 0:00:02]} 46. Rd5 {[%emt 0:00:01]} Nf7 {[%emt 0:00:04]} 47. Nf5 {[%emt 0:00:02]} Kh7 {[%emt 0:00:03]} 48. Kg4 {[%emt 0:00:04]} Kg6 {[%emt 0:00:12]} 49. Ne7+ {[%emt 0:00:02]} Kg7 {[%emt 0:00:01]} 50. Nf5+ {[%emt 0:00:02]} Kg6 {[%emt 0:00:02]} 51. Nd4 {[%emt 0:00:01]} Rf4+ {[%emt 0:00:18]} 52. Kg3 {[%emt 0:00:02]} Rf6 {[%emt 0:00:01]} 53. b4 {[%emt 0:00:01]} Nd6 {[%emt 0:00:06]} 54. bxa5 {[%emt 0:00:05]} bxa5 {[%emt 0:00:00]} 55. Rxa5 {[%emt 0:00:02]} Nc4 {[%emt 0:00:01]} 56. Rc5 {[%emt 0:00:03]} Ne3 {[%emt 0:00:02]} 57. Rc6 {[%emt 0:00:10]} Nf5+ {[%emt 0:00:07]} 58. Nxf5 {[%emt 0:00:03]} Rxc6 {[%emt 0:00:21]} 59. Ne7+ {[%emt 0:00:01]} 1-0

[Event "European Online Club-ch-H 2021"]
[Site "Online"]
[Date "2021.03.27"]
[Round "9.11"]
[White "Valuet, Bertrand"]
[Black "Suleymanli, Aydin"]
[Result "0-1"]
[ECO "B18"]
[WhiteElo "2217"]
[BlackElo "2512"]
[Annotator "ChessBase"]
[PlyCount "48"]
[EventDate "2021.03.27"]
[EventType "team-tourn"]
[EventCountry "NET"]
[SourceTitle "playchess.com"]
[Source "ChessBase"]
[SourceQuality "1"]
[TimeControl "900+5"]

1. e4 {[%emt 0:00:00]} c6 {[%emt 0:00:02]} 2. d4 {[%emt 0:00:04]} d5 {[%emt 0:00:01]} 3. Nc3 {[%emt 0:00:02]} dxe4 {[%emt 0:00:02]} 4. Nxe4 {[%emt 0:00:02]} Bf5 {[%emt 0:00:01]} 5. Bd3 {[%emt 0:00:02]} e6 {[%emt 0:00:14]} 6. Nf3 {[%emt 0:00:10]} Nd7 {[%emt 0:00:02]} 7. Bf4 {[%emt 0:00:33]} Ndf6 {[%emt 0:00:17]} 8. Nxf6+ {[%emt 0:00:22]} Nxf6 {[%emt 0:00:04]} 9. Bxf5 {[%emt 0:00:08]} Qa5+ {[%emt 0:00:02]} 10. Qd2 {[%emt 0:00:19]} Qxf5 {[%emt 0:00:03]} 11. Ne5 {[%emt 0:00:13]} Qe4+ {[%emt 0:00:25]} 12. Kf1 {[%emt 0:00:56]} Rd8 {[%emt 0:00:21]} 13. c3 {[%emt 0:00:31]} c5 {[%emt 0:00:29]} 14. Rd1 {[%emt 0:00:46]} cxd4 {[%emt 0:00:11]} 15. Re1 {[%emt 0:00:37]} Qd5 {[%emt 0:00:14]} 16. c4 {[%emt 0:00:03]} Qc5 {[%emt 0:00:04]} 17. a3 {[%emt 0:00:13]} a5 {[%emt 0:00:06]} 18. Qc2 {[%emt 0:02:14]} b5 {[%emt 0:00:25]} 19. b4 {[%emt 0:02:44]} axb4 {[%emt 0:00:11]} 20. axb4 {[%emt 0:00:03]} d3 {[%emt 0:01:41]} 21. Qa2 {[%emt 0:01:01]} Qd4 {[%emt 0:00:34]} 22. Bd2 {[%emt 0:00:48]} Ne4 {[%emt 0:00:10]} 23. Rxe4 {[%emt 0:00:45]} Qxe4 {[%emt 0:00:03]} 24. Bc3 {[%emt 0:00:44]} d2 {[%emt 0:00:04]} 0-1

[Event "European Online Club-ch-H 2021"]
[Site "Online"]
[Date "2021.03.27"]
[Round "9.12"]
[White "Sadikhov, Ulvi"]
[Black "Santamaria, Jorge"]
[Result "1-0"]
[ECO "B01"]
[WhiteElo "2490"]
[BlackElo "2185"]
[Annotator "ChessBase"]
[PlyCount "93"]
[EventDate "2021.03.27"]
[EventType "team-tourn"]
[EventCountry "NET"]
[SourceTitle "playchess.com"]
[Source "ChessBase"]
[SourceQuality "1"]
[TimeControl "900+5"]

1. e4 {[%emt 0:00:00]} d5 {[%emt 0:00:04]} 2. exd5 {[%emt 0:00:10]} Qxd5 {[%emt 0:00:04]} 3. Nc3 {[%emt 0:00:02]} Qd6 {[%emt 0:00:02]} 4. Nf3 {[%emt 0:00:04]} Nf6 {[%emt 0:00:04]} 5. d4 {[%emt 0:00:02]} c6 {[%emt 0:00:03]} 6. g3 {[%emt 0:00:02]} Bg4 {[%emt 0:00:09]} 7. Bg2 {[%emt 0:00:03]} e6 {[%emt 0:00:02]} 8. O-O {[%emt 0:00:03]} Be7 {[%emt 0:00:04]} 9. h3 {[%emt 0:00:07]} Bh5 {[%emt 0:00:03]} 10. Ne2 {[%emt 0:00:05]} O-O {[%emt 0:00:11]} 11. Nf4 {[%emt 0:00:02]} Bxf3 {[%emt 0:00:04]} 12. Bxf3 {[%emt 0:00:06]} Rd8 {[%emt 0:00:09]} 13. c3 {[%emt 0:00:03]} Qc7 {[%emt 0:00:37]} 14. Qe2 {[%emt 0:00:06]} Bd6 {[%emt 0:00:10]} 15. Nd3 {[%emt 0:00:47]} Nbd7 {[%emt 0:00:05]} 16. Re1 {[%emt 0:01:30]} a5 {[%emt 0:00:16]} 17. a4 {[%emt 0:00:18]} Re8 {[%emt 0:00:08]} 18. Be3 {[%emt 0:00:51]} Nd5 {[%emt 0:01:01]} 19. Bd2 {[%emt 0:00:18]} N5f6 {[%emt 0:00:39]} 20. Kg2 {[%emt 0:00:48]} Rad8 {[%emt 0:01:01]} 21. Rad1 {[%emt 0:00:15]} b6 {[%emt 0:01:18]} 22. g4 {[%emt 0:02:19]} Nd5 {[%emt 0:00:28]} 23. c4 {[%emt 0:00:08]} Nb4 {[%emt 0:00:22]} 24. Bxb4 {[%emt 0:00:24]} axb4 {[%emt 0:00:14]} 25. b3 {[%emt 0:00:02]} c5 {[%emt 0:00:18]} 26. d5 {[%emt 0:00:53]} Re7 {[%emt 0:00:32]} 27. Qd2 {[%emt 0:00:30]} Nf8 {[%emt 0:00:07]} 28. dxe6 {[%emt 0:01:25]} Nxe6 {[%emt 0:00:08]} 29. Bd5 {[%emt 0:00:17]} Nf4+ {[%emt 0:01:45]} 30. Nxf4 {[%emt 0:00:19]} Rxe1 {[%emt 0:00:05]} 31. Rxe1 {[%emt 0:01:00]} Bxf4 {[%emt 0:00:05]} 32. Qe2 {[%emt 0:00:17]} Bd6 {[%emt 0:00:37]} 33. Qe4 {[%emt 0:00:26]} g6 {[%emt 0:00:09]} 34. Re3 {[%emt 0:00:09]} Kf8 {[%emt 0:00:20]} 35. Rf3 {[%emt 0:00:42]} Rd7 {[%emt 0:00:05]} 36. Qe3 {[%emt 0:01:20]} Kg7 {[%emt 0:00:04]} 37. h4 {[%emt 0:00:09]} Be5 {[%emt 0:00:12]} 38. h5 {[%emt 0:00:06]} h6 {[%emt 0:00:12]} 39. hxg6 {[%emt 0:00:10]} fxg6 {[%emt 0:00:04]} 40. Rh3 {[%emt 0:00:09]} Bf4 {[%emt 0:00:21]} 41. Qe6 {[%emt 0:00:08]} Qd6 {[%emt 0:00:46]} 42. Qg8+ {[%emt 0:00:04]} Kf6 {[%emt 0:00:03]} 43. Rf3 {[%emt 0:00:19]} Kg5 {[%emt 0:00:14]} 44. Rd3 {[%emt 0:00:11]} Qf6 {[%emt 0:00:23]} 45. Rh3 {[%emt 0:00:32]} Re7 {[%emt 0:01:27]} 46. Rh5+ {[%emt 0:00:14]} Kxg4 {[%emt 0:00:08]} 47. Bf3# {[%emt 0:00:02]} 1-0